fUSD/lending_fUSD_20241125
["ID","MTS","AMOUNT","RATE_DAILY","PERIOD"]
[343254372,1732532886770,-821.63,0.00042091,21]
[343254373,1732532886830,-500.0,0.00042091,21]
[343254374,1732532886883,-2387.18190944,0.00042091,15]
[343254375,1732532886941,-184.82321845,0.00042092,21]
[343254376,1732532886997,-500.0,0.00042092,21]
[343254377,1732532887054,-500.0,0.00042092,21]
[343254378,1732532887115,-500.0,0.00042092,21]
[343254379,1732532887181,-746.0,0.00042141,21]
[343254380,1732532887247,-3255.95,0.00042141,21]
[343254381,1732532887308,-1224.61,0.0004219,21]
[343254382,1732532887374,-500.0,0.0004219,21]
[343254383,1732532887437,-500.0,0.0004219,21]
[343254384,1732532887506,-500.0,0.0004219,21]
[343254385,1732532887569,-542.1310247,0.0004219,21]
[343254386,1732532887633,-1154.27,0.0004219,21]
[343254387,1732532887696,-924.22,0.0004219,21]
[343254388,1732532887761,-696.89,0.0004219,21]
[343254389,1732532887821,-3150.76,0.0004219,21]
[343254390,1732532887885,-9504.79,0.0004219,21]
[343254391,1732532887946,-7938.89,0.0004219,21]
[343254392,1732532888015,-1024.94,0.0004219,21]
[343254393,1732532888086,-3978.3,0.0004219,21]
[343254394,1732532888163,-1146.63,0.0004219,21]
[343254395,1732532888242,-1748.64,0.0004219,21]
[343254396,1732532888315,-5468.25,0.0004219,21]
[343254397,1732532888379,-708.11,0.0004219,21]
[343254398,1732532888443,-500.0,0.0004219,21]
[343254399,1732532888507,-1409.15,0.0004219,21]
[343254400,1732532888573,-758.58,0.0004219,21]
[343254401,1732532888643,-5734.8,0.0004219,21]
[343254402,1732532888712,-677.5,0.0004219,21]
[343254403,1732532888777,-580.49,0.0004219,21]
[343254404,1732532888847,-1167.03,0.0004219,21]
[343254405,1732532888917,-1719.67,0.0004219,21]
[343254406,1732532888984,-500.0,0.0004219,21]
[343254407,1732532889048,-3582.8,0.0004219,21]
[343254408,1732532889118,-500.0,0.0004219,21]
[343254409,1732532889201,-4585.2,0.00042191,21]
[343254410,1732532889288,-851.7,0.00042191,21]
[343254411,1732532889367,-5410.63,0.00042191,21]
[343254412,1732532889451,-500.0,0.00042191,21]
[343254413,1732532889530,-1973.4,0.00042191,21]
[343254414,1732532889614,-4420.66,0.00042191,21]
[343254415,1732532889698,-5984.38,0.00042191,21]
[343254416,1732532889769,-6051.6,0.00042191,21]
[343254417,1732532889844,-1300.59,0.00042191,21]
[343254418,1732532889920,-1357.91,0.00042191,21]
[343254419,1732532889994,-3894.59,0.00042191,21]
[343254420,1732532890067,-14627.41,0.00042191,21]
[343254421,1732532890142,-2412.24,0.00042191,21]
[343254422,1732532890218,-2936.98,0.00042191,21]
[343254423,1732532890291,-500.0,0.00042191,21]
[343254424,1732532890367,-54972.88181566,0.000422,120]
[343254425,1732532890438,-2059.55,0.000423,60]
[343254426,1732532890514,-10074.36493731,0.000423,120]
[343254427,1732532890583,-229.0,0.000423,30]
[343254428,1732532890653,-364.0,0.000423,30]
[343254429,1732532890724,-1000.0,0.000423,30]
[343254430,1732532890793,-1334.73,0.00042328,120]
[343254431,1732532890865,-500.0,0.00042342,21]
[343254432,1732532890936,-1065.09,0.00042342,21]
[343254433,1732532891002,-500.0,0.00042342,21]
[343254434,1732532891071,-500.0,0.00042342,21]
[343254435,1732532891141,-500.0,0.00042342,21]
[343254436,1732532891218,-500.0,0.00042342,21]
[343254437,1732532891295,-1721.9,0.00042342,21]
[343254438,1732532891368,-776.3,0.00042342,21]
[343254439,1732532891441,-500.0,0.00042342,21]
[343254440,1732532891514,-502.08782563,0.00042342,21]
[343254441,1732532891587,-500.0,0.00042342,21]
[343254442,1732532891663,-500.0,0.00042342,21]
[343254443,1732532891732,-1826.63,0.00042342,21]
[343254444,1732532891800,-2723.73,0.00042342,21]
[343254445,1732532891870,-500.0,0.00042342,21]
[343254446,1732532891941,-951.95,0.00042342,21]
[343254447,1732532892011,-870.89,0.00042342,21]
[343254448,1732532892085,-2153.49,0.00042342,21]
[343254449,1732532892154,-500.0,0.00042342,21]
[343254450,1732532892227,-1113.59,0.00042342,21]
[343254451,1732532892323,-659.89,0.00042342,21]
[343254452,1732532892402,-500.0,0.00042342,21]
[343254453,1732532892475,-2119.8,0.00042342,21]
[343254454,1732532892549,-500.0,0.00042342,21]
[343254455,1732532892621,-500.0,0.00042342,21]
[343254456,1732532892691,-843.63,0.00042342,2]
[343254457,1732532892760,-2388.93,0.00042342,21]
[343254458,1732532892831,-4974.71,0.00042342,21]
[343254459,1732532892902,-500.0,0.00042342,21]
[343254460,1732532892969,-500.0,0.00042342,21]
[343254461,1732532893036,-500.0,0.00042342,21]
[343254462,1732532893117,-3450.2,0.00042342,21]
[343254463,1732532893198,-954.85,0.00042342,21]
[343254464,1732532893274,-500.0,0.00042342,21]
[343254465,1732532893352,-1553.14,0.00042342,21]
[343254466,1732532893435,-1151.71,0.00042342,21]
[343254467,1732532893504,-500.0,0.00042342,21]
[343254468,1732532893575,-500.0,0.00042342,21]
[343254469,1732532893646,-500.0,0.00042342,21]
[343254470,1732532893719,-571.37,0.00042342,21]
[343254471,1732532893791,-500.0,0.00042342,21]
[343254472,1732532893863,-530.05904265,0.00042342,21]
[343254473,1732532893941,-894.49,0.00042342,21]
[343254474,1732532894021,-3520.87,0.00042342,21]
[343254475,1732532894095,-9353.77,0.00042342,21]
[343254476,1732532894172,-1431.01,0.00042342,21]
[343254477,1732532894248,-500.0,0.00042342,21]
[343254478,1732532894324,-5664.41,0.00042342,21]
[343254479,1732532894399,-500.0,0.00042342,21]
[343254480,1732532894472,-3466.62,0.00042342,21]
[343254481,1732532894549,-18248.58,0.00042342,21]
[343254482,1732532894620,-500.0,0.00042342,21]
[343254483,1732532894696,-512.9,0.00042342,21]
[343254484,1732532894768,-466.50737361,0.00042342,21]
[343254485,1732532894842,-500.0,0.00042342,21]
[343254486,1732532894925,-500.0,0.00042342,21]
[343254487,1732532894993,-500.0,0.00042342,21]
[343254488,1732532895065,-1656.57,0.00042342,21]
[343254489,1732532895374,-505.95,0.00042342,21]
[343254490,1732532895453,-500.0,0.00042342,21]
[343254491,1732532895517,-250.0,0.00042342,21]
[343254492,1732532895574,-500.0,0.00042342,21]
[343254493,1732532895639,-1259.85,0.00042342,21]
[343254494,1732532895700,-197.86187198,0.00042342,21]
[343254495,1732532895759,-828.92,0.00042342,21]
[343254496,1732532895816,-500.0,0.00042342,21]
[343254497,1732532895877,-500.0,0.00042342,21]
[343254498,1732532895939,-3065.29,0.00042342,21]
[343254499,1732532896010,-500.0,0.00042342,21]
[343254500,1732532896080,-702.07,0.00042342,21]
[343254501,1732532896151,-500.0,0.00042342,21]
[343254502,1732532896224,-759.78,0.00042342,21]
[343254503,1732532896294,-500.0,0.00042342,21]
[343254504,1732532896359,-3422.22,0.00042342,21]
[343254505,1732532896424,-930.71,0.00042343,21]
[343254506,1732532896487,-977.78,0.00042343,21]
[343254507,1732532896552,-500.0,0.00042343,21]
[343254508,1732532896618,-500.0,0.00042343,21]
[343254509,1732532896682,-1187.33,0.00042343,21]
[343254510,1732532896741,-910.51,0.00042343,21]
[343254511,1732532896803,-824.84,0.00042343,21]
[343254512,1732532896865,-1094.91,0.00042343,21]
[343254513,1732532896922,-922.35,0.00042343,21]
[343254514,1732532896983,-500.0,0.00042343,21]
[343254515,1732532897042,-880.06,0.00042343,21]
[343254516,1732532897108,-2617.3,0.00042343,2]
[343254517,1732532897171,-500.0,0.00042343,21]
[343254518,1732532897236,-500.0,0.00042343,21]
[343254519,1732532897299,-1017.78,0.00042343,21]
[343254520,1732532897360,-1037.63,0.00042343,21]
[343254521,1732532897420,-500.0,0.00042343,21]
[343254522,1732532897478,-777.53,0.00042343,21]
[343254523,1732532897537,-1089.67,0.00042343,21]
[343254524,1732532897597,-500.0,0.00042343,21]
[343254525,1732532897657,-551.59,0.00042343,21]
[343254526,1732532897719,-500.0,0.00042343,21]
[343254527,1732532897779,-790.58,0.00042343,21]
[343254528,1732532897842,-4250.59,0.00042343,21]
[343254529,1732532897902,-500.0,0.00042343,21]
[343254530,1732532897963,-500.0,0.00042343,21]
[343254531,1732532898025,-1539.48,0.00042343,21]
[343254532,1732532898095,-500.0,0.00042343,21]
[343254533,1732532898162,-961.47,0.00042343,21]
[343254534,1732532898226,-500.0,0.00042343,21]
[343254535,1732532898293,-1576.46,0.00042343,21]
[343254536,1732532898356,-500.0,0.00042343,21]
[343254537,1732532898423,-500.0,0.00042343,21]
[343254538,1732532898487,-500.0,0.00042343,21]
[343254539,1732532898554,-504.82,0.00042343,21]
[343254540,1732532898621,-542.31,0.00042343,21]
[343254541,1732532898688,-500.0,0.00042343,21]
[343254542,1732532898755,-725.84,0.00042343,21]
[343254543,1732532898820,-500.0,0.00042343,21]
[343254544,1732532898890,-2192.49,0.00042343,21]
[343254545,1732532898965,-1580.0,0.00042343,21]
[343254546,1732532899040,-671.48,0.00042343,21]
[343254547,1732532899111,-633.88,0.00042343,21]
[343254548,1732532899182,-500.0,0.00042343,21]
[343254549,1732532899250,-1292.43,0.00042343,21]
[343254550,1732532899322,-500.0,0.00042343,21]
[343254551,1732532899392,-700.87,0.00042343,21]
[343254552,1732532899457,-713.25,0.00042343,21]
[343254553,1732532899527,-156.7981039,0.00042343,21]
[343254554,1732532899592,-875.61,0.00042343,21]
[343254555,1732532899660,-5528.84,0.00042343,21]
[343254556,1732532899721,-1499.87,0.00042343,21]
[343254557,1732532899785,-1922.44,0.00042343,21]
[343254558,1732532899852,-500.0,0.00042343,21]
[343254559,1732532899917,-500.0,0.00042343,21]
[343254560,1732532899982,-9365.77718979,0.00042355,30]
[343254561,1732532900046,-226.0,0.00042361,2]
[343254562,1732532900115,-166.0,0.00042361,2]
[343254563,1732532900186,-157.0,0.00042361,2]
[343254564,1732532900258,-150.0,0.00042361,2]
[343254565,1732532900325,-150.0,0.00042361,2]
[343254566,1732532900390,-150.0,0.00042361,2]
[343254567,1732532900451,-816.0,0.00042361,2]
[343254568,1732532900518,-2135.66,0.00042362,21]
[343254569,1732532900582,-500.0,0.00042362,21]
[343254570,1732532900645,-500.0,0.00042362,21]
[343254571,1732532900706,-500.0,0.00042362,21]
[343254572,1732532900772,-807.3,0.00042362,21]
[343254573,1732532900830,-500.0,0.00042362,21]
[343254574,1732532900888,-500.0,0.00042362,21]
[343254575,1732532900944,-500.0,0.00042362,21]
[343254576,1732532901005,-757.94,0.00042362,21]
[343254577,1732532901064,-500.0,0.00042362,21]
[343254578,1732532901129,-500.0,0.00042362,21]
[343254579,1732532901201,-500.0,0.00042362,21]
[343254582,1732532901267,-500.0,0.00042362,21]
[343254584,1732532901330,-239.00867079,0.00042362,21]
[343254586,1732532901391,-694.46,0.00042362,21]
[343254587,1732532901457,-917.86,0.00042362,21]
[343254589,1732532901519,-516.96411699,0.00042362,21]
[343254590,1732532901580,-500.0,0.00042362,21]
[343254591,1732532901637,-500.0,0.00042362,21]
[343254592,1732532901692,-500.0,0.00042362,21]
[343254593,1732532901749,-520.28619825,0.00042362,21]
[343254594,1732532901806,-500.0,0.00042362,21]
[343254595,1732532901865,-500.0,0.00042362,21]
[343254596,1732532901925,-500.0,0.00042362,21]
[343254597,1732532901978,-500.0,0.00042362,21]
[343254598,1732532902039,-500.0,0.00042362,21]
[343254599,1732532902100,-500.0,0.00042362,21]
[343254600,1732532902164,-1043.91,0.00042362,21]
[343254601,1732532902225,-500.0,0.00042362,21]
[343254602,1732532902281,-643.97226761,0.00042362,21]
[343254603,1732532902341,-500.0,0.00042362,21]
[343254604,1732532902395,-500.0,0.00042362,21]
[343254605,1732532902452,-500.0,0.00042362,21]
[343254606,1732532902510,-500.0,0.00042362,21]
[343254607,1732532902566,-500.0,0.00042362,21]
[343254608,1732532902629,-500.0,0.00042362,21]
[343254609,1732532902687,-500.0,0.00042362,21]
[343254610,1732532902745,-500.0,0.00042362,21]
[343254611,1732532902804,-500.0,0.00042362,21]
[343254612,1732532902861,-260.31205077,0.00042362,21]
[343254613,1732532903194,-500.0,0.00042362,21]
[343254614,1732532903254,-500.0,0.00042362,21]
[343254615,1732532903312,-334.18448691,0.00042362,21]
[343254616,1732532903371,-500.0,0.00042362,21]
[343254617,1732532903432,-500.0,0.00042362,21]
[343254618,1732532903492,-500.0,0.00042362,21]
[343254619,1732532903551,-500.0,0.00042362,21]
[343254620,1732532903615,-500.0,0.00042362,21]
[343254621,1732532903676,-558.37718715,0.00042362,21]
[343254622,1732532903742,-500.0,0.00042362,21]
[343254623,1732532903802,-500.0,0.00042362,21]
[343254624,1732532903861,-500.0,0.00042362,21]
[343254625,1732532903925,-500.0,0.00042362,21]
[343254626,1732532904002,-500.0,0.00042362,21]
[343254627,1732532904076,-500.0,0.00042362,21]
[343254628,1732532904147,-500.0,0.00042362,21]
[343254629,1732532904219,-500.0,0.00042362,21]
[343254630,1732532904293,-336.54092075,0.00042362,21]
[343254631,1732532904357,-500.0,0.00042362,21]
[343254632,1732532904424,-500.0,0.00042362,21]
[343254633,1732532904489,-500.0,0.00042362,21]
[343254634,1732532904556,-500.0,0.00042362,21]
[343254635,1732532904622,-761.85,0.00042362,21]
[343254636,1732532904688,-500.0,0.00042362,21]
[343254637,1732532904752,-928.86,0.00042362,21]
[343254638,1732532904813,-500.0,0.00042362,21]
[343254639,1732532904877,-500.0,0.00042362,21]
[343254640,1732532904943,-500.0,0.00042362,21]
[343254641,1732532905008,-500.0,0.00042362,7]
[343254642,1732532905075,-779.71,0.00042362,21]
[343254643,1732532905141,-500.0,0.00042362,21]
[343254644,1732532905206,-500.0,0.00042362,21]
[343254645,1732532905271,-500.0,0.00042362,21]
[343254646,1732532905344,-500.0,0.00042362,21]
[343254647,1732532905405,-500.0,0.00042362,21]
[343254648,1732532905469,-487.07044016,0.00042362,21]
[343254649,1732532905529,-500.0,0.00042362,21]
[343254650,1732532905592,-500.0,0.00042362,21]
[343254651,1732532905654,-196.47306427,0.00042362,21]
[343254652,1732532905719,-500.0,0.00042362,21]
[343254653,1732532905785,-500.0,0.00042362,21]
[343254654,1732532905845,-500.0,0.00042362,21]
[343254655,1732532905912,-580.99,0.00042362,21]
[343254656,1732532905978,-500.0,0.00042362,21]
[343254657,1732532906037,-500.0,0.00042362,21]
[343254658,1732532906104,-340.40001205,0.00042362,21]
[343254659,1732532906181,-500.0,0.00042362,21]
[343254660,1732532906255,-389.42753534,0.00042362,21]
[343254661,1732532906320,-456.09408333,0.00042362,21]
[343254662,1732532906384,-579.27185351,0.00042362,21]
[343254663,1732532906447,-500.0,0.00042362,21]
[343254664,1732532906511,-500.0,0.00042362,21]
[343254665,1732532906574,-818.46,0.00042362,21]
[343254666,1732532906635,-523.95888479,0.00042363,21]
[343254667,1732532906696,-507.36,0.00042363,21]
[343254668,1732532906756,-500.0,0.00042363,21]
[343254669,1732532906816,-500.0,0.00042363,21]
[343254670,1732532906877,-500.0,0.00042363,21]
[343254671,1732532906939,-500.0,0.00042363,21]
[343254672,1732532906997,-500.0,0.00042363,21]
[343254673,1732532907058,-500.0,0.00042363,21]
[343254674,1732532907116,-500.0,0.00042363,21]
[343254675,1732532907182,-438.07,0.00042363,21]
[343254676,1732532907247,-500.0,0.00042363,21]
[343254677,1732532907306,-500.0,0.00042363,21]
[343254678,1732532907374,-536.4,0.00042363,21]
[343254679,1732532907436,-500.0,0.00042363,21]
[343254680,1732532907497,-500.0,0.00042363,21]
[343254681,1732532907559,-500.0,0.00042363,21]
[343254682,1732532907621,-500.0,0.00042363,21]
[343254683,1732532907684,-500.0,0.00042363,21]
[343254684,1732532907745,-500.0,0.00042363,21]
[343254685,1732532907807,-500.0,0.00042363,21]
[343254686,1732532907865,-581.29,0.00042363,21]
[343254687,1732532907927,-500.0,0.00042363,21]
[343254688,1732532907985,-500.0,0.00042363,21]
[343254689,1732532908048,-883.86,0.00042363,21]
[343254690,1732532908109,-500.0,0.00042363,21]
[343254691,1732532908183,-553.75,0.00042363,21]
[343254692,1732532908251,-711.45,0.00042363,21]
[343254693,1732532908306,-500.0,0.00042363,21]
[343254694,1732532908369,-500.0,0.00042363,21]
[343254695,1732532908431,-500.0,0.00042363,21]
[343254696,1732532908499,-652.27,0.00042363,21]
[343254697,1732532908562,-846.74,0.00042363,21]
[343254698,1732532908626,-500.0,0.00042363,21]
[343254699,1732532908693,-500.0,0.00042363,120]
[343254700,1732532908756,-500.0,0.00042363,21]
[343254701,1732532908822,-29177.54002125,0.00042365,2]
[343254702,1732532908964,-500.0,0.00042365,21]
[343254703,1732532909026,-500.0,0.00042365,21]
[343254704,1732532909092,-1149.65,0.00042365,21]
[343254705,1732532909154,-500.0,0.00042365,21]
[343254706,1732532909216,-808.32,0.00042365,21]
[343254707,1732532909272,-500.0,0.00042365,21]
[343254708,1732532909333,-500.0,0.00042365,21]
[343254709,1732532909393,-500.0,0.00042365,21]
[343254710,1732532909454,-500.0,0.00042365,21]
[343254711,1732532909516,-500.0,0.00042365,21]
[343254712,1732532909578,-500.0,0.00042365,21]
[343254713,1732532909636,-500.0,0.00042365,21]
[343254714,1732532909698,-500.0,0.00042365,21]
[343254715,1732532909754,-500.0,0.00042365,21]
[343254716,1732532909810,-500.0,0.00042365,21]
[343254717,1732532909866,-443.08144908,0.00042365,21]
[343254718,1732532909920,-821.63,0.00042365,21]
[343254719,1732532909979,-500.0,0.00042365,21]
[343254720,1732532910039,-500.0,0.00042366,21]
[343254721,1732532910102,-298.1353958,0.00042366,21]
[343254722,1732532910161,-500.0,0.00042366,21]
[343254723,1732532910224,-500.0,0.00042366,2]
[343254724,1732532910285,-746.0,0.00042415,21]
[343254725,1732532910347,-3255.95,0.00042415,21]
[343254726,1732532910403,-150.0,0.0004246,2]
[343254727,1732532910461,-1224.61,0.00042464,21]
[343254728,1732532910517,-500.0,0.00042464,21]
[343254729,1732532910575,-500.0,0.00042464,21]
[343254730,1732532910629,-500.0,0.00042464,21]
[343254731,1732532910687,-1154.27,0.00042464,21]
[343254732,1732532910741,-924.22,0.00042464,21]
[343254733,1732532910794,-696.89,0.00042464,21]
[343254734,1732532910847,-3150.76,0.00042464,21]
[343254735,1732532910901,-9504.79,0.00042464,21]
[343254736,1732532910955,-7938.89,0.00042464,21]
[343254737,1732532911006,-1024.94,0.00042464,21]
[343254738,1732532911061,-3978.3,0.00042464,21]
[343254739,1732532911120,-1146.63,0.00042464,21]
[343254740,1732532911178,-1748.64,0.00042464,21]
[343254741,1732532911238,-5468.25,0.00042464,21]
[343254742,1732532911298,-708.11,0.00042464,21]
[343254743,1732532911363,-500.0,0.00042464,21]
[343254744,1732532911422,-1409.15,0.00042464,21]
[343254745,1732532911481,-758.58,0.00042464,21]
[343254746,1732532911540,-5734.8,0.00042464,21]
[343254747,1732532911594,-677.5,0.00042464,21]
[343254748,1732532911651,-580.49,0.00042464,21]
[343254749,1732532911706,-1167.03,0.00042464,21]
[343254750,1732532911760,-1719.67,0.00042464,21]
[343254751,1732532911816,-175.80380846,0.00042464,21]
[343254752,1732532911871,-3582.8,0.00042464,21]
[343254753,1732532911928,-500.0,0.00042464,21]
[343254754,1732532911994,-4585.2,0.00042465,21]
[343254755,1732532912060,-851.7,0.00042465,21]
[343254756,1732532912127,-5410.63,0.00042465,21]
[343254757,1732532912196,-500.0,0.00042465,21]
[343254758,1732532912257,-1973.4,0.00042465,21]
[343254759,1732532912316,-4420.66,0.00042465,21]
[343254760,1732532912378,-5984.38,0.00042465,21]
[343254761,1732532912432,-6051.6,0.00042465,21]
[343254762,1732532912490,-1300.59,0.00042465,21]
[343254763,1732532912546,-1357.91,0.00042465,21]
[343254764,1732532912612,-3894.59,0.00042465,21]
[343254765,1732532912677,-14627.41,0.00042465,21]
[343254766,1732532912737,-2412.24,0.00042465,21]
[343254767,1732532912799,-2936.98,0.00042465,21]
[343254768,1732532912855,-412.88251667,0.00042465,21]
[343254769,1732532912918,-50000.0,0.000425,2]
[343254770,1732532912980,-50000.0,0.000425,3]
[343254771,1732532913040,-513.37711531,0.00042522,10]
[343254772,1732532913103,-502.01527672,0.00042522,10]
[343254773,1732532913164,-1361.499,0.0004258,60]
[343254774,1732532913231,-500.0,0.00042616,21]
[343254775,1732532913298,-1065.09,0.00042616,21]
[343254776,1732532913366,-500.0,0.00042616,21]
[343254777,1732532913433,-500.0,0.00042616,21]
[343254778,1732532913498,-500.0,0.00042616,21]
[343254779,1732532913563,-500.0,0.00042616,21]
[343254780,1732532913627,-1721.9,0.00042616,21]
[343254781,1732532913695,-776.3,0.00042616,21]
[343254782,1732532913761,-500.0,0.00042616,21]
[343254783,1732532913830,-500.0,0.00042616,21]
[343254784,1732532913895,-208.93449787,0.00042616,21]
[343254785,1732532913959,-1826.63,0.00042616,21]
[343254786,1732532914032,-2723.73,0.00042616,21]
[343254787,1732532914096,-500.0,0.00042616,21]
[343254788,1732532914163,-951.95,0.00042616,21]
[343254789,1732532914231,-870.89,0.00042616,21]
[343254790,1732532914305,-2153.49,0.00042616,21]
[343254791,1732532914378,-500.0,0.00042616,21]
[343254792,1732532914444,-1113.59,0.00042616,21]
[343254793,1732532914506,-659.89,0.00042616,21]
[343254794,1732532914572,-500.0,0.00042616,21]
[343254795,1732532914634,-2119.8,0.00042616,21]
[343254796,1732532914699,-500.0,0.00042616,21]
[343254797,1732532914765,-500.0,0.00042616,21]
[343254798,1732532914828,-843.63,0.00042616,2]
[343254799,1732532914900,-2388.93,0.00042616,21]
[343254800,1732532914970,-4974.71,0.00042616,21]
[343254801,1732532915034,-500.0,0.00042616,21]
[343254802,1732532915094,-500.0,0.00042616,21]
[343254803,1732532915163,-500.0,0.00042616,21]
[343254804,1732532915234,-3450.2,0.00042616,21]
[343254805,1732532915304,-954.85,0.00042616,21]
[343254806,1732532915370,-500.0,0.00042616,21]
[343254807,1732532915435,-1553.14,0.00042616,21]
[343254808,1732532915497,-1151.71,0.00042616,21]
[343254809,1732532915559,-500.0,0.00042616,21]
[343254810,1732532915622,-500.0,0.00042616,21]
[343254811,1732532915680,-500.0,0.00042616,21]
[343254812,1732532915745,-571.37,0.00042616,21]
[343254813,1732532915806,-450.42898217,0.00042616,21]
[343254814,1732532915871,-894.49,0.00042616,21]
[343254815,1732532915931,-3520.87,0.00042616,21]
[343254816,1732532915999,-9353.77,0.00042616,21]
[343254817,1732532916067,-1431.01,0.00042616,21]
[343254818,1732532916129,-500.0,0.00042616,21]
[343254819,1732532916197,-5664.41,0.00042616,21]
[343254820,1732532916260,-500.0,0.00042616,21]
[343254821,1732532916323,-3466.62,0.00042616,21]
[343254822,1732532916386,-18248.58,0.00042616,21]
[343254823,1732532916450,-500.0,0.00042616,21]
[343254824,1732532916513,-512.9,0.00042616,21]
[343254825,1732532916577,-500.0,0.00042616,21]
[343254826,1732532916637,-500.0,0.00042616,21]
[343254827,1732532916695,-500.0,0.00042616,21]
[343254828,1732532916760,-1656.57,0.00042616,21]
[343254829,1732532916820,-505.95,0.00042616,21]
[343254830,1732532916878,-500.0,0.00042616,21]
[343254831,1732532916936,-250.0,0.00042616,21]
[343254832,1732532916992,-500.0,0.00042616,21]
[343254833,1732532917053,-1259.85,0.00042616,21]
[343254834,1732532917113,-828.92,0.00042616,21]
[343254835,1732532917181,-500.0,0.00042616,21]
[343254836,1732532917249,-500.0,0.00042616,21]
[343254837,1732532917315,-3065.29,0.00042616,21]
[343254838,1732532917381,-500.0,0.00042616,21]
[343254839,1732532917439,-702.07,0.00042616,21]
[343254840,1732532917504,-500.0,0.00042616,21]
[343254841,1732532917567,-759.78,0.00042616,21]
[343254842,1732532917630,-500.0,0.00042616,21]
[343254843,1732532917693,-3422.22,0.00042616,21]
[343254844,1732532917751,-930.71,0.00042617,21]
[343254845,1732532917820,-977.78,0.00042617,21]
[343254846,1732532917880,-500.0,0.00042617,21]
[343254847,1732532917940,-500.0,0.00042617,21]
[343254848,1732532918162,-1187.33,0.00042617,21]
[343254849,1732532918239,-910.51,0.00042617,21]
[343254850,1732532918301,-824.84,0.00042617,21]
[343254851,1732532918364,-1094.91,0.00042617,21]
[343254852,1732532918422,-922.35,0.00042617,21]
[343254853,1732532918484,-455.68630588,0.00042617,21]
[343254854,1732532918542,-880.06,0.00042617,21]
[343254855,1732532918600,-2617.3,0.00042617,2]
[343254856,1732532918662,-500.0,0.00042617,21]
[343254857,1732532918723,-500.0,0.00042617,21]
[343254858,1732532918785,-1017.78,0.00042617,21]
[343254859,1732532918845,-1037.63,0.00042617,21]
[343254860,1732532918909,-417.99819097,0.00042617,21]
[343254861,1732532918970,-777.53,0.00042617,21]
[343254862,1732532919032,-1089.67,0.00042617,21]
[343254863,1732532919094,-485.15299939,0.00042617,21]
[343254864,1732532919153,-551.59,0.00042617,21]
[343254865,1732532919214,-183.47923375,0.00042617,21]
[343254866,1732532919273,-790.58,0.00042617,21]
[343254867,1732532919339,-4250.59,0.00042617,21]
[343254868,1732532919401,-500.0,0.00042617,21]
[343254869,1732532919466,-500.0,0.00042617,21]
[343254870,1732532919532,-1539.48,0.00042617,21]
[343254871,1732532919596,-500.0,0.00042617,21]
[343254872,1732532919663,-961.47,0.00042617,21]
[343254873,1732532919727,-503.81,0.00042617,21]
[343254874,1732532919795,-1576.46,0.00042617,21]
[343254875,1732532919862,-359.51145281,0.00042617,21]
[343254876,1732532919942,-500.0,0.00042617,21]